[Event "Titled Tuesday Blitz May 30 Late 2023"]
[White "Rustemov, Alexander"]
[Black "Pranav, V"]
[WhiteFideId "4119002"]
[BlackFideId "25060783"]
[WhiteElo "2886"]
[BlackElo "2515"]
[Result "0-1"]
[Round "06"]
[TimeControl "180+2"]
[Date "2023.05.31"]
[WhiteClock "0:00:01"]
[BlackClock "0:00:14"]

1. d4 {[%clk 0:03:00]}  Nf6 {[%clk 0:03:00]} 2. c4 {[%clk 0:03:01]}  g6 {[%clk 0:03:00]} 3. Nf3 {[%clk 0:03:01]}  Bg7 {[%clk 0:03:00]} 4. g3 {[%clk 0:03:02]}  O-O {[%clk 0:03:01]} 5. Bg2 {[%clk 0:03:02]}  d6 {[%clk 0:03:01]} 6. Nc3 {[%clk 0:03:03]}  Nbd7 {[%clk 0:03:01]} 7. d5 {[%clk 0:03:03]}  Nc5 {[%clk 0:03:00]} 8. Be3 {[%clk 0:03:02]}  b6 {[%clk 0:02:59]} 9. O-O {[%clk 0:02:54]}  Ng4 {[%clk 0:02:59]} 10. Bd4 {[%clk 0:02:54]}  Nf6 {[%clk 0:02:57]} 11. h3 {[%clk 0:02:45]}  a5 {[%clk 0:02:57]} 12. Rc1 {[%clk 0:02:44]}  Bb7 {[%clk 0:02:57]} 13. Qc2 {[%clk 0:02:40]}  e5 {[%clk 0:02:52]} 14. dxe6 {[%clk 0:02:39]}  Nxe6 {[%clk 0:02:53]} 15. Be3 {[%clk 0:02:38]}  Re8 {[%clk 0:02:53]} 16. Rfd1 {[%clk 0:02:32]}  Qe7 {[%clk 0:02:53]} 17. Nd4 {[%clk 0:02:18]}  Bxg2 {[%clk 0:02:47]} 18. Kxg2 {[%clk 0:02:18]}  Nc5 {[%clk 0:02:25]} 19. Nd5 {[%clk 0:02:08]}  Nxd5 {[%clk 0:02:17]} 20. cxd5 {[%clk 0:02:09]}  Qd7 {[%clk 0:02:14]} 21. Qd2 {[%clk 0:01:54]}  Re4 {[%clk 0:01:59]} 22. Nc6 {[%clk 0:01:51]}  Rae8 {[%clk 0:01:52]} 23. Rc2 {[%clk 0:01:39]}  h5 {[%clk 0:01:47]} 24. Bxc5 {[%clk 0:01:39]}  dxc5 {[%clk 0:01:36]} 25. Qd3 {[%clk 0:01:37]}  c4 {[%clk 0:01:33]} 26. Qf3 {[%clk 0:01:22]}  a4 {[%clk 0:01:24]} 27. a3 {[%clk 0:01:22]}  b5 {[%clk 0:01:23]} 28. h4 {[%clk 0:01:21]}  Qd6 {[%clk 0:01:21]} 29. Rcd2 {[%clk 0:01:17]}  c3 {[%clk 0:01:15]} 30. bxc3 {[%clk 0:01:15]}  Qxa3 {[%clk 0:01:03]} 31. Rc2 {[%clk 0:01:06]}  Qc5 {[%clk 0:01:00]} 32. Rd3 {[%clk 0:00:57]}  b4 {[%clk 0:00:57]} 33. e3 {[%clk 0:00:15]}  b3 {[%clk 0:00:55]} 34. Rb2 {[%clk 0:00:14]}  Bxc3 {[%clk 0:00:51]} 35. Rb1 {[%clk 0:00:13]}  Bg7 {[%clk 0:00:50]} 36. Qd1 {[%clk 0:00:13]}  Rc4 {[%clk 0:00:45]} 37. Qf3 {[%clk 0:00:03]}  Rc2 {[%clk 0:00:41]} 38. Rbd1 {[%clk 0:00:03]}  b2 {[%clk 0:00:38]} 39. Nd4 {[%clk 0:00:02]}  Bxd4 {[%clk 0:00:36]} 40. Rxd4 {[%clk 0:00:02]}  Rc1 {[%clk 0:00:36]} 41. d6 {[%clk 0:00:02]}  cxd6 {[%clk 0:00:33]} 42. Qb7 {[%clk 0:00:02]}  b1=Q {[%clk 0:00:31]} 43. Qxb1 {[%clk 0:00:01]}  Rxb1 {[%clk 0:00:31]} 44. Rxb1 {[%clk 0:00:02]}  a3 {[%clk 0:00:30]} 45. Rbd1 {[%clk 0:00:01]}  Ra8 {[%clk 0:00:27]} 46. R4d2 {[%clk 0:00:01]}  a2 {[%clk 0:00:15]} 47. Ra1 {[%clk 0:00:01]}  Qb5 {[%clk 0:00:14]} 0-1


[Site "https://www.chess.com"]

[Event "Titled Tuesday Blitz May 30 Late 2023"]
[White "Bluebaum, Matthias"]
[Black "Prohaszka, Peter"]
[WhiteFideId "24651516"]
[BlackFideId "726265"]
[WhiteElo "2639"]
[BlackElo "2626"]
[Result "1-0"]
[Round "06"]
[TimeControl "180+2"]
[Date "2023.05.31"]
[WhiteClock "0:00:12"]
[BlackClock "0:00:11"]

1. d4 {[%clk 0:03:00]}  d5 {[%clk 0:02:49]} 2. c4 {[%clk 0:03:00]}  e6 {[%clk 0:02:49]} 3. Nc3 {[%clk 0:03:00]}  a6 {[%clk 0:02:48]} 4. cxd5 {[%clk 0:02:58]}  exd5 {[%clk 0:02:49]} 5. Bf4 {[%clk 0:02:59]}  Nf6 {[%clk 0:02:45]} 6. e3 {[%clk 0:02:59]}  Bd6 {[%clk 0:02:44]} 7. Bxd6 {[%clk 0:03:00]}  Qxd6 {[%clk 0:02:45]} 8. Bd3 {[%clk 0:03:00]}  O-O {[%clk 0:02:38]} 9. Nge2 {[%clk 0:03:01]}  Re8 {[%clk 0:02:37]} 10. Qd2 {[%clk 0:03:01]}  Bg4 {[%clk 0:02:25]} 11. f3 {[%clk 0:03:00]}  Bh5 {[%clk 0:02:25]} 12. O-O {[%clk 0:03:01]}  Bg6 {[%clk 0:02:25]} 13. Ng3 {[%clk 0:02:59]}  c5 {[%clk 0:02:17]} 14. Na4 {[%clk 0:02:16]}  cxd4 {[%clk 0:02:02]} 15. exd4 {[%clk 0:02:17]}  Nc6 {[%clk 0:01:57]} 16. Bxg6 {[%clk 0:02:16]}  hxg6 {[%clk 0:01:58]} 17. Nc5 {[%clk 0:02:16]}  b6 {[%clk 0:01:55]} 18. Nb3 {[%clk 0:02:16]}  a5 {[%clk 0:01:54]} 19. a3 {[%clk 0:02:12]}  a4 {[%clk 0:01:49]} 20. Nc1 {[%clk 0:02:12]}  Na5 {[%clk 0:01:49]} 21. Qd1 {[%clk 0:02:05]}  Qf4 {[%clk 0:01:23]} 22. Rf2 {[%clk 0:01:51]}  Nc4 {[%clk 0:01:22]} 23. Nf1 {[%clk 0:01:49]}  Re6 {[%clk 0:01:09]} 24. Ne2 {[%clk 0:01:50]}  Qg5 {[%clk 0:00:58]} 25. Nc3 {[%clk 0:01:48]}  Nh5 {[%clk 0:00:52]} 26. f4 {[%clk 0:01:05]}  Nxf4 {[%clk 0:00:45]} 27. Qf3 {[%clk 0:01:05]}  Rf6 {[%clk 0:00:46]} 28. Qg3 {[%clk 0:01:05]}  Qxg3 {[%clk 0:00:32]} 29. hxg3 {[%clk 0:01:06]}  Ne6 {[%clk 0:00:32]} 30. Rxf6 {[%clk 0:01:00]}  gxf6 {[%clk 0:00:33]} 31. Nxd5 {[%clk 0:01:01]}  Kg7 {[%clk 0:00:30]} 32. Rc1 {[%clk 0:00:53]}  Nxb2 {[%clk 0:00:26]} 33. Rc2 {[%clk 0:00:53]}  Nd3 {[%clk 0:00:16]} 34. Nxb6 {[%clk 0:00:50]}  Rb8 {[%clk 0:00:11]} 35. Nxa4 {[%clk 0:00:47]}  Rb1 {[%clk 0:00:11]} 36. Nc3 {[%clk 0:00:45]}  Ra1 {[%clk 0:00:10]} 37. Ra2 {[%clk 0:00:46]}  Rc1 {[%clk 0:00:08]} 38. Ne2 {[%clk 0:00:44]}  Re1 {[%clk 0:00:07]} 39. a4 {[%clk 0:00:42]}  Nc7 {[%clk 0:00:06]} 40. Nf4 {[%clk 0:00:36]}  Nb4 {[%clk 0:00:05]} 41. Rb2 {[%clk 0:00:34]}  Nca6 {[%clk 0:00:06]} 42. Kf2 {[%clk 0:00:25]}  Ra1 {[%clk 0:00:06]} 43. Rd2 {[%clk 0:00:25]}  Rxa4 {[%clk 0:00:05]} 44. d5 {[%clk 0:00:26]}  Nb8 {[%clk 0:00:05]} 45. Ne3 {[%clk 0:00:25]}  Nd7 {[%clk 0:00:05]} 46. d6 {[%clk 0:00:22]}  Ra2 {[%clk 0:00:04]} 47. Rxa2 {[%clk 0:00:20]}  Nxa2 {[%clk 0:00:05]} 48. Nfd5 {[%clk 0:00:21]}  Nc1 {[%clk 0:00:03]} 49. Ke1 {[%clk 0:00:21]}  Nd3+ {[%clk 0:00:03]} 50. Kd2 {[%clk 0:00:21]}  N3c5 {[%clk 0:00:03]} 51. Nc4 {[%clk 0:00:16]}  f5 {[%clk 0:00:03]} 52. Ke3 {[%clk 0:00:16]}  f6 {[%clk 0:00:03]} 53. Kd4 {[%clk 0:00:16]}  Ne6+ {[%clk 0:00:04]} 54. Kc3 {[%clk 0:00:17]}  Kf7 {[%clk 0:00:04]} 55. Nc7 {[%clk 0:00:16]}  Nec5 {[%clk 0:00:03]} 56. Kd4 {[%clk 0:00:16]}  Nb3+ {[%clk 0:00:02]} 57. Kd5 {[%clk 0:00:16]}  Ndc5 {[%clk 0:00:01]} 58. Kc6 {[%clk 0:00:16]}  Ne6 {[%clk 0:00:01]} 59. Nxe6 {[%clk 0:00:08]}  Kxe6 {[%clk 0:00:02]} 60. d7 {[%clk 0:00:09]}  Nd4+ {[%clk 0:00:02]} 61. Kc7 {[%clk 0:00:09]}  Nb5+ {[%clk 0:00:03]} 62. Kd8 {[%clk 0:00:10]}  Na7 {[%clk 0:00:02]} 63. Ke8 {[%clk 0:00:09]}  Nc6 {[%clk 0:00:02]} 64. Na5 {[%clk 0:00:10]}  Nxa5 {[%clk 0:00:01]} 65. d8=Q {[%clk 0:00:11]}  Nc6 {[%clk 0:00:02]} 66. Qd7+ {[%clk 0:00:11]}  Ke5 {[%clk 0:00:02]} 67. Qxc6 {[%clk 0:00:12]}  f4 {[%clk 0:00:03]} 68. Qc7+ {[%clk 0:00:12]}  Kf5 {[%clk 0:00:03]} 69. Qxf4+ {[%clk 0:00:13]}  Ke6 {[%clk 0:00:04]} 70. Qe4+ {[%clk 0:00:13]}  Kd6 {[%clk 0:00:05]} 71. Qxg6 {[%clk 0:00:13]}  Ke5 {[%clk 0:00:05]} 72. g4 {[%clk 0:00:14]}  Kf4 {[%clk 0:00:06]} 73. Qxf6+ {[%clk 0:00:15]}  Kg3 {[%clk 0:00:07]} 74. Qf3+ {[%clk 0:00:15]}  Kh4 {[%clk 0:00:08]} 75. Qh3+ {[%clk 0:00:14]}  Kg5 {[%clk 0:00:09]} 76. g3 {[%clk 0:00:14]}  Kg6 {[%clk 0:00:09]} 77. Qh5+ {[%clk 0:00:15]}  Kg7 {[%clk 0:00:10]} 78. g5 {[%clk 0:00:14]}  Kg8 {[%clk 0:00:10]} 79. Ke7 {[%clk 0:00:11]}  Kg7 {[%clk 0:00:11]} 80. g6 {[%clk 0:00:11]}  Kg8 {[%clk 0:00:11]} 81. Qh7# {[%clk 0:00:12]} 1-0


[Site "https://www.chess.com"]

[Event "Titled Tuesday Blitz May 30 Late 2023"]
[White "Sarana, Alexey"]
[Black "Bryakin, Mikhail"]
[WhiteFideId "24133795"]
[BlackFideId "4165314"]
[WhiteElo "2714"]
[BlackElo "2467"]
[Result "1-0"]
[Round "06"]
[TimeControl "180+2"]
[Date "2023.05.31"]
[WhiteClock "0:00:06"]
[BlackClock "0:00:02"]

1. c4 {[%clk 0:03:00]}  Nf6 {[%clk 0:02:52]} 2. Nc3 {[%clk 0:02:59]}  d6 {[%clk 0:02:49]} 3. d4 {[%clk 0:02:57]}  g6 {[%clk 0:02:49]} 4. e4 {[%clk 0:02:57]}  Bg7 {[%clk 0:02:50]} 5. Bd3 {[%clk 0:02:57]}  e5 {[%clk 0:02:46]} 6. d5 {[%clk 0:02:57]}  a5 {[%clk 0:02:45]} 7. Nge2 {[%clk 0:02:57]}  Na6 {[%clk 0:02:45]} 8. f3 {[%clk 0:02:57]}  Nc5 {[%clk 0:02:44]} 9. Bc2 {[%clk 0:02:57]}  O-O {[%clk 0:02:40]} 10. Be3 {[%clk 0:02:58]}  Nfd7 {[%clk 0:02:38]} 11. h4 {[%clk 0:02:56]}  f5 {[%clk 0:02:27]} 12. Qd2 {[%clk 0:02:54]}  f4 {[%clk 0:02:23]} 13. Bf2 {[%clk 0:02:54]}  Nf6 {[%clk 0:02:22]} 14. O-O-O {[%clk 0:02:37]}  Bd7 {[%clk 0:02:11]} 15. Kb1 {[%clk 0:02:37]}  a4 {[%clk 0:02:11]} 16. a3 {[%clk 0:02:35]}  b6 {[%clk 0:02:09]} 17. Nb5 {[%clk 0:02:35]}  Ra5 {[%clk 0:01:57]} 18. Nec3 {[%clk 0:02:34]}  Nh5 {[%clk 0:01:53]} 19. Qe1 {[%clk 0:02:28]}  Bh6 {[%clk 0:01:49]} 20. Ka2 {[%clk 0:02:22]}  Rf7 {[%clk 0:01:48]} 21. Bxc5 {[%clk 0:02:04]}  bxc5 {[%clk 0:01:46]} 22. Bxa4 {[%clk 0:02:04]}  Ng3 {[%clk 0:01:45]} 23. Rh2 {[%clk 0:02:04]}  Bg7 {[%clk 0:01:38]} 24. Bc2 {[%clk 0:02:02]}  Ra8 {[%clk 0:01:33]} 25. a4 {[%clk 0:01:59]}  Bf6 {[%clk 0:01:33]} 26. h5 {[%clk 0:01:35]}  Nxh5 {[%clk 0:01:33]} 27. Ne2 {[%clk 0:01:34]}  Bg5 {[%clk 0:01:28]} 28. Rh1 {[%clk 0:01:31]}  Kg7 {[%clk 0:01:25]} 29. b3 {[%clk 0:01:31]}  h6 {[%clk 0:01:25]} 30. Kb2 {[%clk 0:01:31]}  Qb8 {[%clk 0:01:21]} 31. Bd3 {[%clk 0:01:30]}  Qb6 {[%clk 0:01:21]} 32. Ra1 {[%clk 0:01:29]}  Ra5 {[%clk 0:01:17]} 33. Kc2 {[%clk 0:01:15]}  Rf8 {[%clk 0:01:17]} 34. Qf2 {[%clk 0:01:08]}  Rfa8 {[%clk 0:01:17]} 35. Kb2 {[%clk 0:00:54]}  Qb8 {[%clk 0:01:17]} 36. Rhb1 {[%clk 0:00:53]}  Qd8 {[%clk 0:01:16]} 37. Rh1 {[%clk 0:00:51]}  Qb8 {[%clk 0:01:14]} 38. Nec3 {[%clk 0:00:51]}  Qd8 {[%clk 0:01:14]} 39. Kc2 {[%clk 0:00:46]}  Ng3 {[%clk 0:01:14]} 40. Rhg1 {[%clk 0:00:46]}  Bh4 {[%clk 0:01:15]} 41. Qd2 {[%clk 0:00:46]}  Nh5 {[%clk 0:01:15]} 42. Rh1 {[%clk 0:00:46]}  Ng3 {[%clk 0:01:13]} 43. Rh2 {[%clk 0:00:46]}  Bg5 {[%clk 0:01:12]} 44. Ne2 {[%clk 0:00:44]}  Nxe2 {[%clk 0:01:04]} 45. Bxe2 {[%clk 0:00:42]}  Bh4 {[%clk 0:01:03]} 46. Rah1 {[%clk 0:00:41]}  Bg5 {[%clk 0:01:03]} 47. Qe1 {[%clk 0:00:38]}  Bxb5 {[%clk 0:00:55]} 48. cxb5 {[%clk 0:00:38]}  h5 {[%clk 0:00:53]} 49. Bc4 {[%clk 0:00:38]}  Kf6 {[%clk 0:00:47]} 50. Rh3 {[%clk 0:00:36]}  Kg7 {[%clk 0:00:46]} 51. Qf2 {[%clk 0:00:35]}  Qf6 {[%clk 0:00:46]} 52. Kd3 {[%clk 0:00:35]}  Kf7 {[%clk 0:00:45]} 53. Qe1 {[%clk 0:00:35]}  Qe7 {[%clk 0:00:45]} 54. Qf2 {[%clk 0:00:33]}  Qf6 {[%clk 0:00:45]} 55. Qg1 {[%clk 0:00:32]}  R5a7 {[%clk 0:00:42]} 56. R1h2 {[%clk 0:00:31]}  Rg8 {[%clk 0:00:42]} 57. Qf2 {[%clk 0:00:30]}  Rh8 {[%clk 0:00:39]} 58. Qe1 {[%clk 0:00:30]}  Rha8 {[%clk 0:00:38]} 59. Rh1 {[%clk 0:00:30]}  Qe7 {[%clk 0:00:36]} 60. Rg1 {[%clk 0:00:30]}  Qf6 {[%clk 0:00:34]} 61. Qe2 {[%clk 0:00:26]}  Rh8 {[%clk 0:00:34]} 62. g3 {[%clk 0:00:25]}  Rha8 {[%clk 0:00:33]} 63. Qg2 {[%clk 0:00:24]}  Rg8 {[%clk 0:00:33]} 64. Kc2 {[%clk 0:00:21]}  Rga8 {[%clk 0:00:31]} 65. Kd1 {[%clk 0:00:17]}  Ra5 {[%clk 0:00:31]} 66. Ke2 {[%clk 0:00:17]}  R5a7 {[%clk 0:00:32]} 67. Kd3 {[%clk 0:00:17]}  Ra5 {[%clk 0:00:32]} 68. Qe2 {[%clk 0:00:15]}  R5a7 {[%clk 0:00:32]} 69. Qe1 {[%clk 0:00:15]}  Ra5 {[%clk 0:00:29]} 70. Kc2 {[%clk 0:00:15]}  R5a7 {[%clk 0:00:30]} 71. Rg2 {[%clk 0:00:14]}  Ra5 {[%clk 0:00:29]} 72. Rh1 {[%clk 0:00:14]}  R5a7 {[%clk 0:00:27]} 73. Rhg1 {[%clk 0:00:14]}  Rg8 {[%clk 0:00:20]} 74. a5 {[%clk 0:00:13]}  fxg3 {[%clk 0:00:20]} 75. Qxg3 {[%clk 0:00:14]}  Bf4 {[%clk 0:00:20]} 76. Qe1 {[%clk 0:00:14]}  g5 {[%clk 0:00:17]} 77. Rh1 {[%clk 0:00:14]}  h4 {[%clk 0:00:18]} 78. a6 {[%clk 0:00:14]}  Rb8 {[%clk 0:00:18]} 79. Rg4 {[%clk 0:00:14]}  Ke7 {[%clk 0:00:17]} 80. Qf1 {[%clk 0:00:15]}  Rb6 {[%clk 0:00:17]} 81. Qh3 {[%clk 0:00:15]}  Rb8 {[%clk 0:00:17]} 82. Rhg1 {[%clk 0:00:15]}  Rh8 {[%clk 0:00:17]} 83. R4g2 {[%clk 0:00:15]}  Rf8 {[%clk 0:00:17]} 84. Rf1 {[%clk 0:00:14]}  Rb8 {[%clk 0:00:17]} 85. Rh1 {[%clk 0:00:13]}  Rh8 {[%clk 0:00:17]} 86. Kd3 {[%clk 0:00:13]}  Rf8 {[%clk 0:00:18]} 87. Ke2 {[%clk 0:00:13]}  Rb8 {[%clk 0:00:19]} 88. Qg4 {[%clk 0:00:12]}  Rh8 {[%clk 0:00:19]} 89. Qe6+ {[%clk 0:00:13]}  Qxe6 {[%clk 0:00:19]} 90. dxe6 {[%clk 0:00:13]}  Rb8 {[%clk 0:00:18]} 91. Rgg1 {[%clk 0:00:14]}  Rb6 {[%clk 0:00:18]} 92. Kf2 {[%clk 0:00:14]}  c6 {[%clk 0:00:18]} 93. bxc6 {[%clk 0:00:14]}  Rxc6 {[%clk 0:00:19]} 94. Ra1 {[%clk 0:00:14]}  Rb6 {[%clk 0:00:19]} 95. Kg2 {[%clk 0:00:14]}  Bd2 {[%clk 0:00:17]} 96. Kh3 {[%clk 0:00:13]}  Kf6 {[%clk 0:00:17]} 97. Kg4 {[%clk 0:00:13]}  Bf4 {[%clk 0:00:18]} 98. Ra2 {[%clk 0:00:13]}  Rb8 {[%clk 0:00:18]} 99. Rd1 {[%clk 0:00:12]}  Rb6 {[%clk 0:00:18]} 100. Rd3 {[%clk 0:00:10]}  Bc1 {[%clk 0:00:17]} 101. Ra1 {[%clk 0:00:09]}  Bf4 {[%clk 0:00:18]} 102. Rad1 {[%clk 0:00:09]}  Ke7 {[%clk 0:00:18]} 103. Kf5 {[%clk 0:00:07]}  h3 {[%clk 0:00:15]} 104. Rh1 {[%clk 0:00:06]}  h2 {[%clk 0:00:12]} 105. Kg4 {[%clk 0:00:04]}  Ra8 {[%clk 0:00:12]} 106. Kh3 {[%clk 0:00:04]}  Rh8+ {[%clk 0:00:12]} 107. Kg2 {[%clk 0:00:05]}  Ra8 {[%clk 0:00:12]} 108. Ra1 {[%clk 0:00:02]}  Ra7 {[%clk 0:00:09]} 109. Rdd1 {[%clk 0:00:03]}  Kf6 {[%clk 0:00:09]} 110. Rh1 {[%clk 0:00:03]}  Ke7 {[%clk 0:00:10]} 111. Rxh2 {[%clk 0:00:03]}  Bxh2 {[%clk 0:00:09]} 112. Kxh2 {[%clk 0:00:04]}  Kf6 {[%clk 0:00:10]} 113. Kg3 {[%clk 0:00:04]}  Rb8 {[%clk 0:00:10]} 114. Rh1 {[%clk 0:00:04]}  Rb6 {[%clk 0:00:05]} 115. Rh6+ {[%clk 0:00:03]}  Kg7 {[%clk 0:00:06]} 116. Rh5 {[%clk 0:00:03]}  Kg6 {[%clk 0:00:06]} 117. Kg4 {[%clk 0:00:04]}  Rbxa6 {[%clk 0:00:06]} 118. Rxg5+ {[%clk 0:00:04]}  Kf6 {[%clk 0:00:06]} 119. Rf5+ {[%clk 0:00:05]}  Ke7 {[%clk 0:00:05]} 120. Rh5 {[%clk 0:00:03]}  Ra1 {[%clk 0:00:04]} 121. Kf5 {[%clk 0:00:01]}  Kf8 {[%clk 0:00:04]} 122. Rh8+ {[%clk 0:00:02]}  Kg7 {[%clk 0:00:04]} 123. Rd8 {[%clk 0:00:02]}  Rf1 {[%clk 0:00:03]} 124. Rd7+ {[%clk 0:00:02]}  Rxd7 {[%clk 0:00:02]} 125. exd7 {[%clk 0:00:03]}  Rxf3+ {[%clk 0:00:02]} 126. Ke6 {[%clk 0:00:04]}  Rf8 {[%clk 0:00:03]} 127. Ke7 {[%clk 0:00:04]}  d5 {[%clk 0:00:01]} 128. Bxd5 {[%clk 0:00:04]}  c4 {[%clk 0:00:02]} 129. bxc4 {[%clk 0:00:05]}  Ra8 {[%clk 0:00:02]} 130. d8=Q {[%clk 0:00:06]}  Rxd8 {[%clk 0:00:02]} 131. Kxd8 {[%clk 0:00:06]} 1-0


[Site "https://www.chess.com"]

[Event "Titled Tuesday Blitz May 30 Late 2023"]
[White "Maksimovic, Bojan"]
[Black "Kramnik, Vladimir"]
[WhiteFideId "14408120"]
[BlackFideId "4101588"]
[WhiteElo "2468"]
[BlackElo "2703"]
[Result "1-0"]
[Round "06"]
[TimeControl "180+2"]
[Date "2023.05.31"]
[WhiteClock "0:00:04"]
[BlackClock "0:00:01"]

1. Nf3 {[%clk 0:03:00]}  c5 {[%clk 0:02:57]} 2. g3 {[%clk 0:03:01]}  g6 {[%clk 0:02:56]} 3. Bg2 {[%clk 0:03:01]}  Bg7 {[%clk 0:02:56]} 4. O-O {[%clk 0:03:02]}  Nc6 {[%clk 0:02:54]} 5. c3 {[%clk 0:03:01]}  e5 {[%clk 0:02:53]} 6. d3 {[%clk 0:03:02]}  Nge7 {[%clk 0:02:52]} 7. Nbd2 {[%clk 0:03:02]}  O-O {[%clk 0:02:50]} 8. e4 {[%clk 0:03:02]}  d6 {[%clk 0:02:46]} 9. a3 {[%clk 0:03:01]}  h6 {[%clk 0:02:37]} 10. b4 {[%clk 0:03:00]}  Be6 {[%clk 0:02:34]} 11. Bb2 {[%clk 0:02:41]}  Qd7 {[%clk 0:02:33]} 12. b5 {[%clk 0:02:37]}  Nd8 {[%clk 0:02:31]} 13. a4 {[%clk 0:02:37]}  f5 {[%clk 0:02:30]} 14. exf5 {[%clk 0:02:31]}  gxf5 {[%clk 0:02:28]} 15. Re1 {[%clk 0:02:30]}  Nf7 {[%clk 0:02:22]} 16. Nh4 {[%clk 0:02:25]}  Rae8 {[%clk 0:02:08]} 17. c4 {[%clk 0:02:14]}  Kh7 {[%clk 0:01:35]} 18. f4 {[%clk 0:01:34]}  Rg8 {[%clk 0:01:26]} 19. fxe5 {[%clk 0:01:22]}  Bxe5 {[%clk 0:01:15]} 20. Bxe5 {[%clk 0:01:19]}  Nxe5 {[%clk 0:01:11]} 21. Ndf3 {[%clk 0:01:15]}  N7g6 {[%clk 0:01:04]} 22. Nxe5 {[%clk 0:01:15]}  Nxe5 {[%clk 0:01:03]} 23. d4 {[%clk 0:01:07]}  cxd4 {[%clk 0:00:58]} 24. Qxd4 {[%clk 0:01:08]}  Rg4 {[%clk 0:00:26]} 25. Qxa7 {[%clk 0:01:08]}  f4 {[%clk 0:00:26]} 26. Qxb7 {[%clk 0:01:06]}  Qxb7 {[%clk 0:00:25]} 27. Bxb7 {[%clk 0:01:07]}  fxg3 {[%clk 0:00:26]} 28. hxg3 {[%clk 0:01:08]}  Rxg3+ {[%clk 0:00:26]} 29. Kf2 {[%clk 0:01:08]}  Rg4 {[%clk 0:00:21]} 30. Be4+ {[%clk 0:00:58]}  Kh8 {[%clk 0:00:20]} 31. Nf3 {[%clk 0:00:42]}  Rf8 {[%clk 0:00:20]} 32. Ra3 {[%clk 0:00:42]}  Bxc4 {[%clk 0:00:19]} 33. Ke3 {[%clk 0:00:29]}  Rg3 {[%clk 0:00:15]} 34. Kd4 {[%clk 0:00:25]}  Bg8 {[%clk 0:00:15]} 35. Rf1 {[%clk 0:00:16]}  d5 {[%clk 0:00:10]} 36. Nxe5 {[%clk 0:00:11]}  Rxa3 {[%clk 0:00:09]} 37. Rxf8 {[%clk 0:00:04]}  Rxa4+ {[%clk 0:00:10]} 38. Kc5 {[%clk 0:00:04]}  Rxe4 {[%clk 0:00:10]} 39. Nc6 {[%clk 0:00:03]}  Rc4+ {[%clk 0:00:07]} 40. Kd6 {[%clk 0:00:03]}  d4 {[%clk 0:00:07]} 41. b6 {[%clk 0:00:03]}  Rc1 {[%clk 0:00:04]} 42. b7 {[%clk 0:00:03]}  Rb1 {[%clk 0:00:04]} 43. b8=Q {[%clk 0:00:01]}  Rxb8 {[%clk 0:00:05]} 44. Nxb8 {[%clk 0:00:02]}  Kg7 {[%clk 0:00:05]} 45. Rf4 {[%clk 0:00:02]}  d3 {[%clk 0:00:05]} 46. Rd4 {[%clk 0:00:03]}  Kf6 {[%clk 0:00:04]} 47. Nd7+ {[%clk 0:00:03]}  Kf5 {[%clk 0:00:04]} 48. Rxd3 {[%clk 0:00:04]}  h5 {[%clk 0:00:04]} 49. Rf3+ {[%clk 0:00:04]}  Kg4 {[%clk 0:00:03]} 50. Ne5+ {[%clk 0:00:05]}  Kh4 {[%clk 0:00:02]} 51. Rf8 {[%clk 0:00:04]}  Bb3 {[%clk 0:00:01]} 52. Rf3 {[%clk 0:00:04]}  Ba2 {[%clk 0:00:01]} 53. Rf2 {[%clk 0:00:04]} 1-0


[Site "https://www.chess.com"]

[Event "Titled Tuesday Blitz May 30 Late 2023"]
[White "Mekhitarian, Krikor Sevag"]
[Black "Paravyan, David"]
[WhiteFideId "2107660"]
[BlackFideId "4194985"]
[WhiteElo "2604"]
[BlackElo "2563"]
[Result "0-1"]
[Round "06"]
[TimeControl "180+2"]
[Date "2023.05.31"]
[WhiteClock "0:00:02"]
[BlackClock "0:00:05"]

1. Nf3 {[%clk 0:03:00]}  d5 {[%clk 0:02:52]} 2. c4 {[%clk 0:03:00]}  e6 {[%clk 0:02:46]} 3. d4 {[%clk 0:02:59]}  Nf6 {[%clk 0:02:46]} 4. cxd5 {[%clk 0:02:57]}  exd5 {[%clk 0:02:46]} 5. Nc3 {[%clk 0:02:57]}  c6 {[%clk 0:02:43]} 6. Bf4 {[%clk 0:02:57]}  Bd6 {[%clk 0:02:42]} 7. Bxd6 {[%clk 0:02:57]}  Qxd6 {[%clk 0:02:43]} 8. e3 {[%clk 0:02:58]}  Bf5 {[%clk 0:02:42]} 9. Nh4 {[%clk 0:02:57]}  Be4 {[%clk 0:02:38]} 10. f3 {[%clk 0:02:51]}  Bg6 {[%clk 0:02:37]} 11. e4 {[%clk 0:02:52]}  dxe4 {[%clk 0:02:28]} 12. Nxg6 {[%clk 0:02:46]}  hxg6 {[%clk 0:02:26]} 13. fxe4 {[%clk 0:02:46]}  Qf4 {[%clk 0:02:15]} 14. Qf3 {[%clk 0:02:05]}  g5 {[%clk 0:01:19]} 15. e5 {[%clk 0:01:23]}  Ng4 {[%clk 0:00:53]} 16. Qxf4 {[%clk 0:01:06]}  gxf4 {[%clk 0:00:51]} 17. Be2 {[%clk 0:01:05]}  Ne3 {[%clk 0:00:46]} 18. Kf2 {[%clk 0:01:05]}  Nd7 {[%clk 0:00:38]} 19. g3 {[%clk 0:01:01]}  Nf5 {[%clk 0:00:37]} 20. gxf4 {[%clk 0:00:46]}  Rh4 {[%clk 0:00:36]} 21. Bf3 {[%clk 0:00:30]}  Nxd4 {[%clk 0:00:32]} 22. Ne2 {[%clk 0:00:11]}  Nxe2 {[%clk 0:00:31]} 23. Kxe2 {[%clk 0:00:11]}  Rxf4 {[%clk 0:00:31]} 24. Rag1 {[%clk 0:00:10]}  Nxe5 {[%clk 0:00:20]} 25. Rxg7 {[%clk 0:00:09]}  O-O-O {[%clk 0:00:21]} 26. Rg3 {[%clk 0:00:06]}  Re8 {[%clk 0:00:17]} 27. Kf2 {[%clk 0:00:03]}  Rd4 {[%clk 0:00:17]} 28. Rf1 {[%clk 0:00:01]}  Rd2+ {[%clk 0:00:16]} 29. Kg1 {[%clk 0:00:02]}  Rh8 {[%clk 0:00:15]} 30. Bg2 {[%clk 0:00:02]}  Rxb2 {[%clk 0:00:14]} 31. h3 {[%clk 0:00:03]}  Kc7 {[%clk 0:00:13]} 32. Rf5 {[%clk 0:00:03]}  Kd6 {[%clk 0:00:05]} 33. Rf6+ {[%clk 0:00:03]}  Ke7 {[%clk 0:00:05]} 34. Rf1 {[%clk 0:00:04]}  Rh7 {[%clk 0:00:04]} 35. Rg5 {[%clk 0:00:03]}  f6 {[%clk 0:00:04]} 36. Rg8 {[%clk 0:00:04]}  Kf7 {[%clk 0:00:04]} 37. Rg5 {[%clk 0:00:03]}  Rg7 {[%clk 0:00:03]} 38. Rxg7+ {[%clk 0:00:02]}  Kxg7 {[%clk 0:00:04]} 39. a4 {[%clk 0:00:02]}  Ra2 {[%clk 0:00:04]} 40. Rb1 {[%clk 0:00:02]}  b6 {[%clk 0:00:04]} 41. Rd1 {[%clk 0:00:03]}  Rxa4 {[%clk 0:00:04]} 42. Rd6 {[%clk 0:00:02]}  c5 {[%clk 0:00:04]} 43. Kf2 {[%clk 0:00:02]}  Rd4 {[%clk 0:00:05]} 44. Re6 {[%clk 0:00:02]}  Kf7 {[%clk 0:00:05]} 0-1


[Site "https://www.chess.com"]